Cogmind - Beta 14 *** ADVENTURER MODE // 2025.03.09 @ 22:49:40 Player: ShakeTheBox Result: Destroyed by C-17 Slicer with Blade Saw Performance ------------- Evolutions (4) 2000 Regions Visited (9) 1800 Robots Destroyed (15) 75 Value Destroyed (200) 200 Prototype IDs (25) 500 Alien Tech Used (0) 0 Bonus (300) 300 TOTAL SCORE: 4875 Bonus ------- Aligned with FarCom 300 Cogmind --------- Core Integrity 0/850 Matter 203/300 Energy 95/100 System Corruption 12% Temperature Cool (4) Movement Flying (35) Location -6/Factory Parts ------- > --- POWER (3) -------- (None) > --- PROPULSION (5) --- Surge Thruster > --- UTILITY (4) ------ (None) > --- WEAPON (3) ------- (None) > --- INVENTORY (5) ---- High-powered Shock Rifle Heavy Ion Cannon Heavy Machine Gun Datajack Datajack Peak State ------------ > --- POWER ------------ Nuclear Core > --- PROPULSION ------- Improved Gravmag System Improved Gravmag System Gravmag Array > --- UTILITY ---------- Advanced Targeting Computer Phase Shifter Core Shielding Hardened Medium Armor Plating > --- WEAPON ----------- High-powered Shock Rifle Heavy Ion Cannon Datajack > --- INVENTORY -------- Heavy Machine Gun Datajack Datajack [Rating: 45] Favorites ----------- Power Light Nuclear Core Engine Ion Engine Power Core Light Nuclear Core Propulsion Wheel Treads Medium Treads Leg Aluminum Leg Wheel Wheel Hover Unit Improved Gravmag System Flight Unit Cesium-ion Thruster Utility Small Storage Unit Device Skeleton Box Storage Small Storage Unit Processor Visual Processing Unit Protection Core Shielding Weapon Particle Gun Energy Gun Particle Gun Energy Cannon Heavy Ion Cannon Ballistic Gun Heavy Assault Rifle Ballistic Cannon Bore Cannon Special Weapon Mining Laser Special Melee Weapon Datajack Build | -11 -10 -10 -10 -9 -8 -7 -6 -6 -6 ------- Run | Yrd Mat Min Exi Min Mat Fac Fac Was Fac Slots Evolved 8 | . . . . . 4 2 2 . . Power 2 | . . . . . 1 1 . . . Propulsion 3 | . . . . . 1 1 1 . . Utility 2 | . . . . . 1 . 1 . . Weapon 1 | . . . . . 1 . . . . Parts Attached 69 | 7 1 13 1 2 7 4 8 2 24 Power 11 | 2 . 2 . . 2 1 2 . 2 Engine 4 | 2 . 1 . . . . . . 1 Core 7 | . . 1 . . 2 1 2 . 1 Reactor . | . . . . . . . . . . Propulsion 22 | 2 . 5 . . 2 3 2 1 7 Treads 1 | . . . . . . . 1 . . Leg 4 | 2 . 2 . . . . . . . Wheel 2 | . . 2 . . . . . . . Hover 6 | . . 1 . . . 2 . . 3 Flight 9 | . . . . . 2 1 1 1 4 Utility 14 | 1 . 1 1 1 3 . 1 1 5 Device 6 | . . . 1 . 2 . 1 1 1 Storage 3 | 1 . . . 1 . . . . 1 Processor 3 | . . 1 . . 1 . . . 1 Hackware . | . . . . . . . . . . Protection 2 | . . . . . . . . . 2 Artifact . | . . . . . . . . . . Weapon 22 | 2 1 5 . 1 . . 3 . 10 Energy Gun 5 | 2 1 1 . . . . . . 1 Energy Cannon 4 | . . . . . . . . . 4 Ballistic Gun 4 | . . 1 . 1 . . . . 2 Ballistic Cannon 1 | . . 1 . . . . . . . Launcher . | . . . . . . . . . . Special Weapon 3 | . . 2 . . . . . . 1 Impact Weapon . | . . . . . . . . . . Slashing Weapon . | . . . . . . . . . . Piercing Weapon . | . . . . . . . . . . Special Melee Weapon 5 | . . . . . . . 3 . 2 Unidentified Prototypes 2 | . . . . . . . . 1 1 Parts Lost 26 | . . 8 . . 2 4 . 2 10 Power 4 | . . 2 . . 1 . . . 1 Propulsion 12 | . . 2 . . . 4 . 1 5 Utility 5 | . . . . . 1 . . 1 3 Weapon 5 | . . 4 . . . . . . 1 Highest Loss Streak 4 | . . 4 . . 1 3 . 2 3 To Critical Strikes . | . . . . . . . . . . Average Slot Usage (%) 59 | . 85 80 100 99 43 25 23 27 27 Engine 2 | . 14 10 . . . . . . . Core 5 | . . 1 14 14 7 5 . . 2 Leg 2 | . 28 6 . . . . . . . Wheel 7 | . . 3 28 28 . . . . . Hover 3 | . . 6 . . . . . . 8 Flight 2 | . . . . . 16 11 2 4 1 Device 3 | . . . 3 14 9 . 2 2 2 Storage 6 | . 14 14 14 13 1 . . . . Processor 6 | . . 14 10 . 6 7 6 6 3 Energy Gun 7 | . 28 10 14 14 . . . . . Ballistic Gun 1 | . . 4 . 7 . . . . . Special Weapon 4 | . . 6 14 6 . . . . . Special Melee Weapon 1 | . . . . . . . 6 13 2 Peak Build Rating 45 | 6 6 11 15 17 18 14 18 16 45 Average Rating 12 | 4 6 7 11 15 13 10 10 11 17 On Entrance 8 | . 6 6 11 15 17 11 4 15 3 Naked Turns 57 | . . . . . . . . . 57 Heaviest Build 31 | 12 11 20 16 18 18 7 6 6 31 Greatest Support 40 | 20 20 20 20 20 20 11 28 6 40 Greatest Overweight (x) 4 | 1 . 4 . . 4 1 . . 2 Average Overweight (x) . | . . . . . . . . . . Largest Inventory Capacity 10 | 8 8 8 8 8 8 5 5 5 10 Average Capacity 6 | 6 8 8 8 7 5 5 5 5 5 Most Carried 6 | 5 5 6 6 6 6 5 5 5 5 Average Carried 4 | 3 4 2 5 4 4 4 3 4 4 Final Capacity 8 | 8 8 8 8 8 5 5 5 5 5 Final Carried 5 | 4 4 5 4 5 4 4 4 4 5 Class Distribution -------------------- 69% | Mutant 30% | Scavenger-Mutant Dominant Class ---------------- Mutant | -10/Materials Mutant | -10/Mines Scavenger-Mutant | -10/Exiles Scavenger-Mutant | -9/Mines Mutant | -8/Materials Mutant | -7/Factory Mutant | -6/Factory Mutant | -6/Waste Mutant | -6/Factory Resources | -11 -10 -10 -10 -9 -8 -7 -6 -6 -6 ----------- Run | Yrd Mat Min Exi Min Mat Fac Fac Was Fac Matter Collected 768 | 270 10 164 . 36 . . 25 . 263 Remotely . | . . . . . . . . . . Salvage Created 756 | 96 20 99 . 136 . . 25 . 380 Parts 32 | 1 3 5 . 7 . . 2 . 14 Haulers Intercepted . | . . . . . . . . . . Recyclers Shooed 1 | . . . . . . . . . 1 Parts Field Recycled . | . . . . . . . . . . Retrieved Matter . | . . . . . . . . . . Parts Self-Destructed . | . . . . . . . . . . Prevented . | . . . . . . . . . . Kills | -11 -10 -10 -10 -9 -8 -7 -6 -6 -6 ------- Run | Yrd Mat Min Exi Min Mat Fac Fac Was Fac Combat Hostiles Destroyed 10 | . . 5 . 3 . . . . 2 Guns 8 | . . 5 . 3 . . . . . Cannons 2 | . . . . . . . . . 2 Classes Destroyed 8 | 1 1 2 . 2 . . . . 2 Worker 2 | . . . . 1 . . 1 . . Builder 1 | . . . . . . . . . 1 Recycler 4 | 1 . . . 1 . . . . 2 Watcher 1 | . 1 . . . . . . . . Swarmer 3 | . . . . 3 . . . . . Cutter 2 | . . . . . . . . . 2 Grunt 2 | . . 2 . . . . . . . Assembled 3 | . . 3 . . . . . . . Best Kill Streak 3 | 1 1 2 . 3 . . 1 . 2 Combat Bots Only 3 | . . 2 . 3 . . . . 2 Max Kills in Single Turn 1 | 1 1 1 . 1 . . 1 . 1 Gunslinging . | . . . . . . . . . . Exploded . | . . . . . . . . . . Melee . | . . . . . . . . . . Uniques/NPCs Destroyed . | . . . . . . . . . . Combat | -11 -10 -10 -10 -9 -8 -7 -6 -6 -6 -------- Run | Yrd Mat Min Exi Min Mat Fac Fac Was Fac Hostile Shots Fired 392 | . . 71 . 9 34 53 19 2 204 Missed 173 | . . 14 . 2 26 27 12 . 92 Damage Taken 3036 | . . 868 . 48 96 292 61 68 1603 Core 1258 | . . 240 . 7 40 116 18 68 769 Absorbed by Shields . | . . . . . . . . . . Redirected to Shielding 52 | . . . . . . . . . 52 Ignored by Resistances 871 | . . 247 . 14 27 85 16 19 463 Core Remaining (%) 69 | 100 . . . 1 92 83 . . . Volleys Fired 72 | 2 3 34 2 9 . . . . 22 Largest 2 | 2 2 2 1 2 . . . . 2 Hottest 125 | 80 80 97 65 88 . . . . 125 Shots Fired 90 | 4 6 40 2 11 . . . . 27 Gun 67 | 4 6 36 2 11 . . . . 8 Cannon 23 | . . 4 . . . . . . 19 Launcher . | . . . . . . . . . . Special . | . . . . . . . . . . Kinetic 29 | . . 21 . 2 . . . . 6 Thermal 59 | 4 6 19 2 9 . . . . 19 Explosive . | . . . . . . . . . . Electromagnetic 2 | . . . . . . . . . 2 Robot Hit Streak 25 | 3 1 15 . 25 . . . . 15 Robot Miss Streak 2 | . 2 1 . . . . . . 2 Penetration Max . | . . . . . . . . . . Secondary Targets . | . . . . . . . . . . Shots Hit Robots 70 | 3 2 32 . 10 . . 1 . 22 Core Hits 33 | 2 2 9 . 5 . . 3 . 12 Critical Kills . | . . . . . . . . . . Critical Parts Destroyed . | . . . . . . . . . . Critical Strikes . | . . . . . . . . . . Melee Attacks 1 | . . . . . . . 1 . . Impact . | . . . . . . . . . . Slashing . | . . . . . . . . . . Piercing . | . . . . . . . . . . Sneak Attacks . | . . . . . . . . . . Combat Hostiles . | . . . . . . . . . . Follow-up Attacks . | . . . . . . . . . . Damage Inflicted 1255 | 44 33 416 . 141 . . 14 . 607 Guns 762 | 44 33 378 . 141 . . . . 166 Cannons 441 | . . 38 . . . . . . 403 Explosions . | . . . . . . . . . . Melee . | . . . . . . . . . . Ramming 52 | . . . . . . . 14 . 38 Kinetic 358 | . . 228 . 15 . . . . 115 Thermal 794 | 44 33 188 . 126 . . . . 403 Explosive . | . . . . . . . . . . Electromagnetic 51 | . . . . . . . . . 51 Impact . | . . . . . . . . . . Slashing . | . . . . . . . . . . Piercing . | . . . . . . . . . . Highest Corruption 12 | . . . . . . . . 4 12 Average Corruption 5 | . . . . . . . . 4 5 Corruption Purged . | . . . . . . . . . . Corruption Blocked . | . . . . . . . . . . Effects 19 | . . . . . . . . . 19 Message Errors 5 | . . . . . . . . . 5 Matter Fused 4 | . . . . . . . . . 4 Heat Flow Errors 4 | . . . . . . . . . 4 Energy Discharges 2 | . . . . . . . . . 2 Parts Rejected 1 | . . . . . . . . . 1 Data Loss (minor) 1 | . . . . . . . . . 1 Data Loss (major) 1 | . . . . . . . . . 1 Alerts 1 | . . . . . . . . . 1 Overload Shots . | . . . . . . . . . . Overflow Damage . | . . . . . . . . . . Projectiles . | . . . . . . . . . . Explosions . | . . . . . . . . . . Melee . | . . . . . . . . . . Knockbacks 2 | . . 1 . . . . . . 1 Impact 1 | . . . . . . . . . 1 Kinetic 1 | . . 1 . . . . . . . Secondary . | . . . . . . . . . . Self-Inflicted Damage 22 | . . . . . . . 6 . 16 Shots . | . . . . . . . . . . Rammed 12 | . . . . . . . 4 . 8 Targets Rammed 13 | . . 1 . . . . 4 . 8 Kicked 1 | . . 1 . . . . . . . Crushed . | . . . . . . . . . . Highest Temperature 239 | 36 36 112 56 140 9 . . . 239 Average Temperature 50 | 20 18 40 28 50 9 . . . 72 Received Heat Transfer 682 | . . 300 . . 63 51 . . 268 Siege Activations . | . . . . . . . . . . Robots Corrupted . | . . . . . . . . . . Combat Hostiles . | . . . . . . . . . . Parts Fried . | . . . . . . . . . . Impact Corruptions . | . . . . . . . . . . Robots Melted . | . . . . . . . . . . Combat Hostiles . | . . . . . . . . . . Parts Melted 4 | 1 . . . 1 . . . . 2 Heat Transferred 1498 | 100 75 435 . 333 . . . . 555 Parts Sabotaged . | . . . . . . . . . . Parts Stolen . | . . . . . . . . . . Parts Stripped . | . . . . . . . . . . Power Chain Reactions . | . . . . . . . . . . Alert | -11 -10 -10 -10 -9 -8 -7 -6 -6 -6 ------- Run | Yrd Mat Min Exi Min Mat Fac Fac Was Fac Peak Influence 480 | 5 46 35 . 80 291 208 212 81 480 Initial 113 | . 2 14 . . 26 113 87 61 43 Average 90 | 1 18 6 . 73 119 130 129 67 145 Maximum Alert Level 2 | . . . . . 1 1 1 . 2 Low Security (%) 88 | 100 100 100 . 100 78 98 86 100 74 Level 1 8 | . . . . . 21 1 13 . 15 Level 2 2 | . . . . . . . . . 10 Level 3 . | . . . . . . . . . . Level 4 . | . . . . . . . . . . Level 5 . | . . . . . . . . . . High Security . | . . . . . . . . . . Max Security . | . . . . . . . . . . Squads Dispatched 11 | . . . . . 4 2 1 . 4 Investigation 3 | . . . . . 1 1 1 . . Extermination . | . . . . . . . . . . Reinforcement 8 | . . . . . 3 1 . . 4 Assault . | . . . . . . . . . . Garrison . | . . . . . . . . . . Intercept . | . . . . . . . . . . Searches Triggered . | . . . . . . . . . . Construction Impeded . | . . . . . . . . . . Haulers Reinforced . | . . . . . . . . . . Active Scanning Responses . | . . . . . . . . . . Cargo Convoy Interrupts . | . . . . . . . . . . Stealth | -11 -10 -10 -10 -9 -8 -7 -6 -6 -6 --------- Run | Yrd Mat Min Exi Min Mat Fac Fac Was Fac Distress Signals 4 | . . . . . 2 . 1 . 1 Communications Jammed . | . . . . . . . . . . Distress Signals . | . . . . . . . . . . Times Spotted 128 | . 2 25 . 2 31 11 7 6 44 Peak Tracking Total 18 | . 2 18 . 2 11 4 4 6 10 Tactical Retreats 24 | . . 2 . . 5 3 2 . 12 Traps | -11 -10 -10 -10 -9 -8 -7 -6 -6 -6 ------- Run | Yrd Mat Min Exi Min Mat Fac Fac Was Fac Traps Triggered 6 | . . . . . 1 . 1 . 4 Indirectly . | . . . . . . . . . . Trap Hack Attempts 1 | . . . . . . . 1 . . Triggered . | . . . . . . . . . . Disarmed . | . . . . . . . . . . Reprogrammed 1 | . . . . . . . 1 . . Reused . | . . . . . . . . . . Traps Extracted . | . . . . . . . . . . Installed . | . . . . . . . . . . Triggered . | . . . . . . . . . . Machines | -11 -10 -10 -10 -9 -8 -7 -6 -6 -6 ---------- Run | Yrd Mat Min Exi Min Mat Fac Fac Was Fac Machines Disabled . | . . . . . . . . . . Max in Single Turn . | . . . . . . . . . . Machines Repaired . | . . . . . . . . . . Machines Dismantled . | . . . . . . . . . . Machines Sabotaged . | . . . . . . . . . . Overloaded Fab Kills . | . . . . . . . . . . Hacking | -11 -10 -10 -10 -9 -8 -7 -6 -6 -6 --------- Run | Yrd Mat Min Exi Min Mat Fac Fac Was Fac Machines Accessed 7 | . 1 . 1 . 2 1 1 . 1 Terminals 6 | . 1 . . . 2 1 1 . 1 Fabricators . | . . . . . . . . . . Repair Stations . | . . . . . . . . . . Recycling Units . | . . . . . . . . . . Scanalyzers . | . . . . . . . . . . Garrison Access . | . . . . . . . . . . Total Hacks 14 | . 3 . 1 . 4 2 3 . 1 Successful 5 | . 3 . 1 . . . . . 1 Failed 9 | . . . . . 4 2 3 . . Catastrophic 1 | . . . . . . 1 . . . Database Lockouts . | . . . . . . . . . . Manual 1 | . . . 1 . . . . . . Terminals 13 | . 3 . . . 4 2 3 . 1 Fabricators . | . . . . . . . . . . Repair Stations . | . . . . . . . . . . Recycling Units . | . . . . . . . . . . Scanalyzers . | . . . . . . . . . . Garrison Access . | . . . . . . . . . . Terminal Hacks 5 | . 3 . 1 . . . . . 1 Record 2 | . 2 . . . . . . . . Open DSF 1 | . . . . . . . . . 1 Branch Access Points 1 | . 1 . . . . . . . . Derelict Proto ID Bank 1 | . . . 1 . . . . . . Fabricator Hacks . | . . . . . . . . . . Repair Station Hacks . | . . . . . . . . . . Recycling Unit Hacks . | . . . . . . . . . . Scanalyzer . | . . . . . . . . . . Garrison Access Hacks . | . . . . . . . . . . Unauthorized Hacks . | . . . . . . . . . . Terminals . | . . . . . . . . . . Fabricators . | . . . . . . . . . . Repair Stations . | . . . . . . . . . . Recycling Units . | . . . . . . . . . . Scanalyzers . | . . . . . . . . . . Garrison Access . | . . . . . . . . . . Data Cores Recovered . | . . . . . . . . . . Used . | . . . . . . . . . . Hacking Detections 5 | . 1 . . . 2 1 1 . . Full Trace Events 3 | . 1 . . . . 1 1 . . Feedback Events . | . . . . . . . . . . Feedback Blocked . | . . . . . . . . . . Robot Schematics Acquired . | . . . . . . . . . . Robots Built . | . . . . . . . . . . Authchips . | . . . . . . . . . . Time . | . . . . . . . . . . Total Robot Build Rating . | . . . . . . . . . . Part Schematics Acquired . | . . . . . . . . . . Parts Built . | . . . . . . . . . . Authchips . | . . . . . . . . . . Time . | . . . . . . . . . . Total Part Build Rating . | . . . . . . . . . . Parts Repaired . | . . . . . . . . . . Time . | . . . . . . . . . . Parts Recycled . | . . . . . . . . . . Recycled Matter . | . . . . . . . . . . Retrieved Matter . | . . . . . . . . . . Retrieved Components . | . . . . . . . . . . Parts Scanalyzed . | . . . . . . . . . . Part Schematics Acquired . | . . . . . . . . . . Parts Damaged . | . . . . . . . . . . Bothacking | -11 -10 -10 -10 -9 -8 -7 -6 -6 -6 ------------ Run | Yrd Mat Min Exi Min Mat Fac Fac Was Fac Used RIF Installer . | . . . . . . . . . . Robots Hacked 1 | . . . . . . . 1 . . Non-combat . | . . . . . . . . . . Combat 1 | . . . . . . . 1 . . Robot Hacks Applied 1 | . . . . . . . 1 . . parse_system 1 | . . . . . . . 1 . . Relay Couplers Released . | . . . . . . . . . . Fabnet Peak Effective % . | . . . . . . . . . . Robots Rewired . | . . . . . . . . . . Allies Hacked . | . . . . . . . . . . Hacks Repelled . | . . . . . . . . . . Allies | -11 -10 -10 -10 -9 -8 -7 -6 -6 -6 -------- Run | Yrd Mat Min Exi Min Mat Fac Fac Was Fac Total Allies . | . . . . . . . . . . Largest Group . | . . . . . . . . . . Highest-Rated Group . | . . . . . . . . . . Highest-Rated Ally . | . . . . . . . . . . Total Orders . | . . . . . . . . . . Ally Attacks . | . . . . . . . . . . Total Damage . | . . . . . . . . . . Kills . | . . . . . . . . . . Allies Corrupted . | . . . . . . . . . . Allies Melted . | . . . . . . . . . . Intel | -11 -10 -10 -10 -9 -8 -7 -6 -6 -6 ------- Run | Yrd Mat Min Exi Min Mat Fac Fac Was Fac Robot Analysis Total . | . . . . . . . . . . Derelict Logs Recovered 2 | . . 1 . 1 . . . . . Drone Launches . | . . . . . . . . . . Drone Recoveries . | . . . . . . . . . . Exploration | -11 -10 -10 -10 -9 -8 -7 -6 -6 -6 ------------- Run | Yrd Mat Min Exi Min Mat Fac Fac Was Fac Turns Passed 2839 | 85 144 454 458 263 247 181 267 54 686 Spaces Moved 3624 | 57 105 271 562 293 494 394 323 121 1004 Core 371 | 16 . 5 . . . 29 58 15 248 Treads 66 | . . . . . . . 66 . . Legs 233 | 41 105 87 . . . . . . . Wheels 941 | . . 71 562 293 15 . . . . Hover 552 | . . 108 . . . 11 . . 433 Flight 1461 | . . . . . 479 354 199 106 323 Fastest Speed 32 | 50 120 80 80 80 34 34 40 40 32 Average Speed 63 | 104 120 129 80 80 36 43 66 41 47 Slowest Speed 360 | 120 120 250 80 80 360 115 160 50 160 Overloaded Moves . | . . . . . . . . . . Propulsion Burnouts . | . . . . . . . . . . Robots Hopped 11 | . . . . . 6 1 . . 4 Cave-ins Triggered . | . . . . . . . . . . Exploration Rate (%) 41 | 4 24 50 93 59 45 10 12 96 21 Regions Visited 9 Branch Regions 3 Pre-discovered Areas 1 | . . 1 . . . . . . . Known Exits Taken 1 | . 1 . . . . . . . . Unknown Exits Taken 6 | 1 . 1 1 1 1 1 . . . Scrap Searched 4 | . . . . 4 . . . . . Spaces Dug . | . . . . . . . . . . Terrain Destroyed 2 | . . 2 . . . . . . . Melee . | . . . . . . . . . . Projectile 2 | . . 2 . . . . . . . AOE . | . . . . . . . . . . Terrain Rammed . | . . . . . . . . . . Walls Destroyed . | . . . . . . . . . . Machines Disabled . | . . . . . . . . . . Actions | -11 -10 -10 -10 -9 -8 -7 -6 -6 -6 --------- Run | Yrd Mat Min Exi Min Mat Fac Fac Was Fac Total 4057 | 79 118 336 569 311 557 403 378 125 1181 Wait 193 | . 4 1 . 1 51 . 27 . 109 Move 3594 | 56 104 270 561 292 481 391 323 120 996 Hop 11 | . . . . . 6 1 . . 4 Pick Up 58 | 12 3 14 1 4 3 3 8 2 8 Fast Attach 9 | . . . . . . . . . 9 Attach 59 | 7 1 13 1 2 7 4 8 2 14 Detach 16 | . . . . . 4 2 3 . 7 Swap 1 | . . . . . . . . . 1 Drop 27 | 2 3 3 2 3 5 2 3 1 3 Fire 72 | 2 3 34 2 9 . . . . 22 Melee 1 | . . . . . . . 1 . . Ram 12 | . . . . . . . 4 . 8 Kick 1 | . . 1 . . . . . . . Crush . | . . . . . . . . . . Escape Stasis . | . . . . . . . . . . Rewire 2 | . . . 2 . . . . . . Trap 1 | . . . . . . . 1 . . Miscellaneous . | . . . . . . . . . . Route ------- -11/Scrapyard -10/Materials (discovered 2 exits: *Min x2) -10/Mines -10/Exiles (discovered 2 exits: [*Min x2]) -9/Mines -8/Materials -7/Factory -6/Factory -6/Waste -6/Factory (discovered 1 exit: [*Ext]) History --------- Turn | Location | Event 18 | -11/Scrapyard | Discovered new exit (range 15) 86 | -11/Scrapyard | Entered Materials 168 | -10/Materials | Identified exit to Mines 230 | -10/Materials | Entered Mines 290 | -10/Mines | Assembled infested the area 295 | -10/Mines | Assisted by a Guerilla fighting off Assembled 312 | -10/Mines | Build established: Mutant 325 | -10/Mines | Core integrity fell below 50% 543 | -10/Mines | Core integrity fell below 20% 619 | -10/Mines | Lost 4 parts (1p1n2w) 645 | -10/Mines | Learned location of Storage (-9) 680 | -10/Mines | Deemed a non-threat by the Exiles lab entrance 681 | -10/Mines | Discovered new exit (range 5) 684 | -10/Mines | Entered Exiles 708 | -10/Exiles | Discovered new exit (range 15) 717 | -10/Exiles | Met 8R-AWN 736 | -10/Exiles | Met EX-HEX 793 | -10/Exiles | Met EX-DEC 821 | -10/Exiles | Visited The Gauntlet 866 | -10/Exiles | Build established: Scavenger-Mutant 931 | -10/Exiles | Met EX-BIN 947 | -10/Exiles | Aligned with FarCom system 947 | -10/Exiles | Given EX-Vault access code 987 | -10/Exiles | Opened EX-Vault 1045 | -10/Exiles | Found Skeleton Box 1065 | -10/Exiles | Warned to stay clear of 0b10 Research branches 1131 | -10/Exiles | Discovered new exit (range 14) 1142 | -10/Exiles | Left Exiles lab with Skeleton Box 1142 | -10/Exiles | Entered Mines 1198 | -9/Mines | Learned Materials stockpile data 1392 | -9/Mines | Discovered new exit (range 8) 1405 | -9/Mines | Entered Materials 1405 | -8/Materials | Evolved 4 slots: Power x1, Propulsion x1, Utility x1, Weapon x1 1646 | -8/Materials | Discovered new exit (range 18) 1652 | -8/Materials | Entered Factory 1652 | -7/Factory | Evolved 2 slots: Power x1, Propulsion x1 1720 | -7/Factory | Build established: Mutant 1830 | -7/Factory | Discovered new exit (range 6) 1833 | -7/Factory | Entered another Factory area 1833 | -6/Factory | Evolved 2 slots: Propulsion x1, Utility x1 1850 | -6/Factory | Lost 3 parts (3n) 2100 | -6/Factory | Sucked down chute 2100 | -6/Factory | Entered Waste 2109 | -6/Waste | Spotted C-40 Crusher 2113 | -6/Waste | Spotted C-40 Crusher 2115 | -6/Waste | EMP discharged 2115 | -6/Waste | Spotted C-40 Crusher 2116 | -6/Waste | Spotted C-40 Crusher 2121 | -6/Waste | Spotted C-40 Crusher 2121 | -6/Waste | Crushed by Compactor (1 part destroyed, 2 dropped) 2126 | -6/Waste | Spotted C-40 Crusher 2141 | -6/Waste | Discovered new exit (range 12) 2149 | -6/Waste | Crushed by Compactor (1 part destroyed, 2 dropped) 2154 | -6/Waste | Entered Factory 2532 | -6/Factory | Lost 3 parts (1p1u1w) 2622 | -6/Factory | Core integrity fell below 50% 2631 | -6/Factory | Lost 3 parts (2n1u) 2747 | -6/Factory | Core integrity fell below 20% 2777 | -6/Factory | Lost 3 parts (2n1u) 2830 | -6/Factory | System corruption reached 10% 2837 | -6/Factory | Discovered new exit (range 15) 2840 | -6/Factory | Destroyed by C-17 Slicer with Blade Saw Last Messages --------------- Slammed into R-10 Processor. R-10 Processor knocked back. Slammed into R-10 Processor. R-10 Processor destroyed. Acquired Surge Thruster. Acquired 160 matter. Acquired Med. Storage Unit. [Achievement: Slippery One] Dropped Med. Storage Unit. Acquired 15 matter. Acquired Prototype Engine. Identified F-cell Engine. Faulty integration triggers system corruption (+5). Dropped Faulty F-cell Engine. ALERT: Suspicious intruders detected, dispatching Cutter reinforcements to area. System corrupted: Energy discharge (-26). EXIT=FOUND Knocked back. Map ----- +----------------------------------------------------+ | | | | | | | | | | | | | | | | | | | | | | | | | | | | | | | | | | | ?????????????????????????????????????????######### | | ????????????????????????????????????????? # | | ???????????????????????????????????????? """"" # | | ???????????????????????????????#####???? ""T"" # | | ???????????????#####???????#### # ##??Y ?? ?# | | ???????????????# ####### ## ######!?? ?### | | ?????????????### ########+### | | ???????????# H c ^ | | ???????????????# c@c #### ! | | ???????????????# ######## ## #?## =%| | | ????????????????#??????????# #?# #??# | | ???????????????????????????####?# #??# | | ????????????????????????????????# #??# | | ????????????????????????????????# #??# | | ????????????????????????????????# #??# ######### | | ?????????????????????????######## ####+########? | | ?????????????????????????# # #] #? | | ?????????????????????????# # # #? | | ?????????????????????????# *# # ! ! #? | | ?????????????????????????# ! # # #? | | ?????????????????????????# # # """ """ #? | | ?????????????????????????# + + """ """ #? | | ?????????????????????????# # # """ """ #? | | ?????????????????????????# """ # #############? | | ?????????????????????????# """ # #????????????? | | ?????????????????????????# """ # #????????????? | | ?????????????????????????# "" # #????????????? | | ?????????????????????????# "" # #????????????? | | ?????????????????????????# # #????????????? | | ?????????????????????????####?### #????????????? | | ???????????????????????????????? #????????????? | | ???????????????????????????????? #????????????? | | ???????????????????????????????? #????????????? | +----------------------------------------------------+ Best States ------------- Heat Dissipation 37 Energy Generation 14 Energy Capacity 250 Matter Stores 300 Matter Capacity 300 Sight Range 20 Terrain Scan Density 10 ECM Strength 1 Armor Coverage 225 Resistance: KI 20 Resistance: TH 20 Resistance: EX 20 Resistance: EM 20 Resistance: I 20 Resistance: S 20 Resistance: P 20 Core Shielding 20 Phase Shifting 5 Evasion (%) 63 Targeting Accuracy 8 Recoil Reduction 1 Offensive Hacking 10 Item Schematics ----------------- None Robot Schematics ------------------ None Fabricated ------------ Nothing Alien Tech Used ----------------- None Achievements -------------- Hehehe I Survived The Infestation Slippery One Universal Adapter Challenges ------------ None Game ------ Seed ShieldMappingAutohacker Manual? 0 Play Time 01:10:44 Cumulative 8.0 hours Start 2025.03.09 @ 21:33:35 End 2025.03.09 @ 22:49:40 Sessions 1 Manual Loads 0 Difficulty Adventurer Special Mode None Game No. 7 Rogue 0 Adventurer 7 Explorer 0 Win Type - Total 0 Types 0/0/0/0/0/0/0/0/0 Lore% 4 Gallery% 13 Achievement% 17 Wizard Run 0 Options --------- Layout 1 ASCII 0 Keyboard 0 Movement Numpad Keybinds 0 Fullscreen 2 Font 48/Smallcaps Map View 50x35 Zoom Use 0% Tactical HUD 0 Map Filters NONE Filters NONE Steam 1 RUN: 5844da35-bc21-41e0-9967-57183579676b